bitfinex/quotes_SOLUSD_20230703
["timestamp","ask_amount","ask_price","bid_price","bid_amount"]
[1688388928782,21.878,19.335,19.325,181.058]
[1688388928979,55.0,19.334,19.325,181.058]
[1688388929185,21.88,19.333,19.325,181.058]
[1688388929375,55.0,19.332,19.325,181.058]
[1688388930273,55.0,19.341,19.325,181.058]
[1688388930274,90.55974796,19.356,19.325,181.058]
[1688388930575,56.275,19.352,19.335,21.877]
[1688388930770,21.862,19.349,19.335,21.877]
[1688388931270,21.861,19.35,19.335,21.877]
[1688388934565,21.864,19.347,19.335,21.877]
[1688388934783,76.865,19.346,19.335,21.877]
[1688388934980,21.865,19.346,19.335,21.877]
[1688388935187,102.673,19.353,19.335,21.877]
[1688388935377,20.0,19.352,19.335,21.877]
[1688388935582,21.864,19.347,19.335,21.877]
[1688388936586,55.0,19.346,19.335,21.877]
[1688388936775,21.867,19.345,19.335,21.877]
[1688388937290,21.863,19.348,19.335,21.877]
[1688388937477,55.0,19.347,19.335,21.877]
[1688388937881,55.0,19.348,19.335,21.877]
[1688388938370,56.282,19.349,19.335,21.877]
[1688388938371,21.864,19.347,19.335,21.877]
[1688388939880,56.276,19.351,19.335,21.877]
[1688388940377,21.863,19.348,19.335,21.877]
[1688388940693,21.863,19.348,19.339,180.924]
[1688388940878,21.862,19.349,19.339,180.924]
[1688388941598,21.862,19.349,19.34,31.62]
[1688388941779,56.271,19.353,19.342,78.168]
[1688388942093,21.861,19.349,19.346,21.864]
[1688388942288,158.928,19.355,19.346,21.864]
[1688388942994,21.857,19.353,19.346,21.864]
[1688388943192,21.853,19.357,19.346,21.864]
[1688388943490,81.9893657,19.36,19.346,21.864]
[1688388943685,56.252,19.36,19.346,21.864]
[1688388944073,21.855,19.355,19.346,21.864]
[1688388947686,55.0,19.354,19.346,21.864]
[1688388947888,21.858,19.352,19.346,21.864]
[1688388948086,21.857,19.353,19.346,21.864]
[1688388948806,102.635,19.36,19.346,21.864]
[1688388948981,21.857,19.353,19.346,21.864]
[1688388952095,55.0,19.352,19.346,21.864]
[1688388952393,21.859,19.351,19.346,21.864]
[1688388953509,76.859,19.352,19.346,21.864]
[1688388957292,55.0,19.352,19.346,21.864]
[1688388957598,76.858,19.352,19.346,21.864]
[1688388960210,31.88,19.36,19.346,21.864]
[1688388960602,21.853,19.356,19.346,21.864]
[1688388961913,55.0,19.355,19.346,21.864]
[1688388962816,21.856,19.354,19.346,21.864]
[1688388963009,55.0,19.353,19.346,21.864]
[1688388963200,76.858,19.353,19.346,21.864]
[1688388965607,78.145,19.349,19.333,102.774]
[1688388965807,78.145,19.349,19.336,56.317]
[1688388966111,21.866,19.345,19.337,21.874]
[1688388966312,55.0,19.344,19.337,21.874]
[1688388966617,21.869,19.342,19.337,21.874]
[1688388969699,20.0,19.352,19.331,98.0338]
[1688388970008,26.43116749,19.356,19.331,98.0338]
[1688388970009,21.869,19.342,19.337,21.874]
[1688388973307,21.869,19.342,19.336,21.875]
[1688388977910,21.869,19.342,19.332,179.108]
[1688388977911,21.869,19.342,19.337,21.874]
[1688388978118,21.869,19.342,19.336,21.875]
[1688388978320,21.869,19.342,19.335,21.876]
[1688388978614,21.875,19.337,19.331,21.881]
[1688388978809,21.875,19.337,19.327,56.345]
[1688388979009,21.875,19.337,19.33,21.883]
[1688388979319,21.875,19.337,19.329,21.883]
[1688388980213,21.875,19.337,19.328,21.884]
[1688388980803,21.875,19.337,19.324,99.2512]
[1688388981606,21.875,19.337,19.323,56.356]
[1688388982117,21.875,19.337,19.326,21.886]
[1688388991119,21.875,19.337,19.321,56.363]
[1688388991308,55.0,19.336,19.322,20.0]
[1688388991513,78.213,19.332,19.325,21.887]
[1688388993225,21.881,19.332,19.325,21.887]
[1688388996426,55.0,19.331,19.325,21.887]
[1688388996729,21.883,19.33,19.325,21.887]
[1688388997632,55.0,19.331,19.325,21.887]
[1688388997833,56.323,19.335,19.325,21.887]
[1688388998023,21.881,19.332,19.325,21.887]
[1688389002312,55.0,19.331,19.321,94.3299]
[1688389002519,21.885,19.328,19.321,21.893]
[1688389003015,55.0,19.327,19.321,21.893]
[1688389003227,21.888,19.326,19.321,21.893]
[1688389004734,21.888,19.326,19.32,21.894]
[1688389005040,21.888,19.326,19.319,21.894]
[1688389005041,55.0,19.325,19.319,21.894]
[1688389005414,21.89,19.324,19.317,21.897]
[1688389005739,21.894,19.32,19.315,21.899]
[1688389011239,21.894,19.32,19.29,3.0]
[1688389011240,165.43488281,19.319,19.29,3.0]
[1688389011422,181.106,19.32,19.3,31.88]
[1688389011423,21.898,19.317,19.3,31.88]
[1688389011628,21.898,19.317,19.305,56.409]
[1688389011935,88.248,19.32,19.305,78.32]
[1688389011936,21.894,19.32,19.305,78.32]
[1688389012333,21.894,19.32,19.306,30.0]
[1688389012528,21.894,19.32,19.305,78.32]
[1688389012722,21.894,19.321,19.305,78.32]
[1688389012948,21.891,19.323,19.313,21.901]
[1688389013545,21.891,19.323,19.314,55.0]
[1688389013723,21.891,19.323,19.316,21.898]
[1688389013923,31.88,19.34,19.316,21.898]
[1688389014224,181.005,19.331,19.319,21.895]
[1688389014424,181.005,19.331,19.317,21.896]
[1688389017034,55.0,19.33,19.314,55.0]
[1688389017234,181.058,19.326,19.315,21.899]
[1688389018040,181.058,19.326,19.316,55.0]
[1688389018241,78.239,19.326,19.318,21.896]
[1688389020129,78.239,19.326,19.314,25.61438721]
[1688389020336,78.239,19.326,19.315,55.0]
[1688389020536,78.239,19.326,19.316,21.897]
[1688389021932,21.888,19.326,19.316,21.897]
[1688389022246,102.763,19.336,19.322,21.892]
[1688389022440,124.695,19.327,19.311,95.1747]
[1688389022642,124.695,19.327,19.316,21.898]
[1688389023550,21.886,19.327,19.316,21.898]
[1688389023752,21.886,19.327,19.317,55.0]
[1688389023952,21.886,19.327,19.32,21.894]
[1688389025032,21.886,19.327,19.32,78.26]
[1688389025841,21.886,19.327,19.321,55.0]
[1688389026143,21.885,19.328,19.322,21.891]
[1688389027433,21.88,19.333,19.322,21.891]
[1688389027634,21.88,19.333,19.326,21.887]
[1688389028462,21.88,19.333,19.326,78.235]
[1688389029249,21.88,19.333,19.326,21.887]
[1688389031641,124.657,19.333,19.32,21.893]
[1688389031866,31.67,19.33,19.311,91.1928]
[1688389032047,78.242,19.325,19.311,147.5828]
[1688389032359,78.242,19.325,19.314,21.9]
[1688389032765,78.242,19.325,19.315,30.0]
[1688389032966,78.242,19.325,19.315,21.899]
[1688389033467,102.787,19.332,19.315,78.28]
[1688389033857,56.342,19.329,19.32,21.893]
[1688389034060,21.888,19.326,19.32,21.893]
[1688389034671,21.888,19.326,19.311,194.0838]
[1688389034852,55.0,19.325,19.319,21.894]
[1688389035052,21.89,19.324,19.319,21.894]
[1688389040552,56.343,19.329,19.319,21.894]
[1688389040752,55.0,19.328,19.319,21.894]
[1688389042271,21.887,19.326,19.319,21.894]
[1688389047480,55.0,19.325,19.319,21.894]
[1688389047674,76.889,19.325,19.319,21.894]
[1688389049181,21.889,19.325,19.319,21.894]
[1688389049482,21.887,19.326,19.319,21.894]
[1688389049779,10.83719922,19.334,19.319,21.894]
[1688389049988,21.878,19.335,19.324,181.064]
[1688389050166,78.2,19.335,19.324,21.889]
[1688389050358,78.2,19.335,19.314,30.0]
[1688389050561,78.2,19.335,19.324,21.889]
[1688389050762,21.878,19.335,19.324,21.889]
[1688389052091,55.0,19.334,19.324,21.889]
[1688389052381,21.881,19.331,19.324,21.889]
[1688389052582,55.0,19.33,19.324,21.889]
[1688389052787,21.884,19.329,19.324,21.889]
[1688389052988,76.883,19.33,19.324,21.889]
[1688389054277,55.0,19.33,19.324,21.889]
[1688389055160,56.321,19.336,19.324,21.889]
[1688389055378,55.0,19.335,19.324,21.889]
[1688389055564,21.88,19.333,19.324,21.889]
[1688389055778,55.0,19.332,19.324,21.889]
[1688389056288,76.88,19.332,19.324,21.889]
[1688389056587,21.88,19.332,19.324,21.889]
[1688389057282,102.756,19.338,19.324,21.889]
[1688389057578,21.878,19.334,19.324,21.889]
[1688389059088,55.0,19.337,19.324,21.889]
[1688389059266,21.877,19.336,19.324,21.889]
[1688389059987,55.0,19.335,19.324,21.889]
[1688389060169,21.879,19.333,19.324,21.889]
[1688389061405,55.0,19.332,19.324,21.889]
[1688389061686,76.881,19.332,19.324,21.889]
[1688389065774,21.881,19.332,19.324,21.889]
[1688389066075,67.19319922,19.341,19.324,21.889]
[1688389066292,56.317,19.337,19.324,21.889]
[1688389066498,55.0,19.336,19.324,21.889]
[1688389067178,21.879,19.334,19.324,21.889]
[1688389067390,55.0,19.333,19.324,21.889]
[1688389067684,76.88,19.333,19.324,21.889]
[1688389070401,21.88,19.333,19.324,21.889]
[1688389074401,55.0,19.332,19.324,21.889]
[1688389074592,21.883,19.33,19.324,21.889]
[1688389074904,55.0,19.332,19.324,21.889]
[1688389075197,56.326,19.334,19.324,21.889]
[1688389075198,21.883,19.331,19.324,21.889]
[1688389077402,21.88,19.333,19.324,21.889]
[1688389077602,56.321,19.336,19.324,21.889]
[1688389077806,55.0,19.335,19.324,21.889]
[1688389080185,21.879,19.334,19.324,21.889]
[1688389080884,55.0,19.335,19.324,21.889]
[1688389081197,76.877,19.335,19.324,21.889]
[1688389085895,21.877,19.335,19.324,21.889]
[1688389087094,55.0,19.334,19.324,21.889]
[1688389087294,21.881,19.332,19.324,21.889]
[1688389088108,21.88,19.333,19.324,21.889]
[1688389088409,21.881,19.332,19.324,21.889]
[1688389097311,55.0,19.331,19.324,21.889]
[1688389098719,159.07,19.338,19.324,21.889]
[1688389098910,21.879,19.334,19.324,21.889]
[1688389099214,76.879,19.333,19.324,21.889]
[1688389099412,31.71,19.34,19.324,21.889]
[1688389099918,21.878,19.334,19.324,21.889]
[1688389101916,76.88,19.333,19.324,21.889]
[1688389102519,21.88,19.333,19.324,21.889]
[1688389102726,31.71,19.34,19.324,21.889]
[1688389102914,21.879,19.333,19.324,21.889]
[1688389106317,21.876,19.336,19.324,21.889]
[1688389106524,31.67,19.35,19.33,31.59]
[1688389106821,87.949,19.35,19.336,78.195]
[1688389107019,53.531,19.35,19.336,78.195]
[1688389108119,21.861,19.35,19.336,78.195]
[1688389110421,21.861,19.35,19.336,21.876]
[1688389110619,55.0,19.349,19.336,21.876]
[1688389110816,55.0,19.349,19.336,78.195]
[1688389110817,21.865,19.346,19.336,78.195]
[1688389111819,21.863,19.348,19.336,78.195]
[1688389112022,102.657,19.356,19.337,55.0]
[1688389112317,21.854,19.356,19.342,180.894]
[1688389112518,21.854,19.356,19.346,21.863]
[1688389113232,78.115,19.356,19.346,21.863]
[1688389115111,55.0,19.355,19.346,21.863]
[1688389115311,56.257,19.358,19.346,21.863]
[1688389115511,21.856,19.354,19.346,21.863]
[1688389116812,56.252,19.36,19.346,21.863]
[1688389117017,56.238,19.364,19.35,212.661]
[1688389117215,21.848,19.361,19.354,21.854]
[1688389117420,21.848,19.362,19.354,21.854]
[1688389119023,102.594,19.368,19.354,21.854]
[1688389119215,21.844,19.365,19.354,21.854]
[1688389119530,21.843,19.365,19.354,21.854]
[1688389119734,21.843,19.365,19.355,55.0]
[1688389120025,21.843,19.365,19.358,21.851]
[1688389120215,21.84,19.368,19.358,124.495]
[1688389120411,56.212,19.373,19.365,21.843]
[1688389120611,78.046,19.373,19.364,21.844]
[1688389121108,57.87863313,19.38,19.364,21.844]
[1688389121313,21.835,19.373,19.364,21.844]
[1688389122518,21.835,19.373,19.359,93.6069]
[1688389122823,21.835,19.373,19.364,78.082]
[1688389123019,31.7,19.38,19.364,78.082]
[1688389123223,21.83,19.377,19.364,78.082]
[1688389124021,21.83,19.377,19.368,21.839]
[1688389125133,78.03,19.377,19.36,51.55]
[1688389125335,78.03,19.377,19.365,21.843]
[1688389126033,21.834,19.373,19.365,21.843]
[1688389128928,21.834,19.373,19.361,30.0]
[1688389129136,55.0,19.372,19.362,20.0]
[1688389129338,21.839,19.369,19.364,21.843]
[1688389129547,21.839,19.369,19.357,56.258]
[1688389129726,55.0,19.368,19.351,92.0911]
[1688389129921,21.845,19.363,19.355,21.853]
[1688389130121,21.845,19.363,19.352,20.0]
[1688389130428,21.845,19.363,19.354,21.854]
[1688389130925,21.845,19.363,19.338,309.5]
[1688389130926,21.845,19.363,19.344,71.62775112]
[1688389131127,21.845,19.363,19.351,21.859]
[1688389131128,21.851,19.358,19.351,21.859]
[1688389131334,21.851,19.358,19.35,21.859]
[1688389132618,21.851,19.358,19.349,21.86]
[1688389134030,21.851,19.358,19.348,21.862]
[1688389143338,21.851,19.358,19.346,92.0911]
[1688389143528,21.851,19.358,19.348,21.862]
[1688389148948,21.851,19.358,19.351,21.858]
[1688389149849,21.851,19.358,19.35,21.859]
[1688389150048,21.851,19.358,19.351,21.858]
[1688389151530,31.77,19.37,19.351,21.858]
[1688389151749,78.08,19.365,19.352,20.0]
[1688389151958,56.231,19.367,19.355,78.117]
[1688389152551,21.845,19.364,19.355,21.853]
[1688389154446,50.231,19.379,19.355,21.853]
[1688389154648,21.843,19.366,19.356,55.0]
[1688389154856,21.843,19.366,19.359,21.85]
[1688389155555,78.075,19.366,19.354,98.1748]
[1688389155757,21.843,19.366,19.359,21.849]
[1688389159163,21.84,19.368,19.359,21.849]
[1688389159358,10.83719922,19.372,19.359,21.849]
[1688389159661,55.0,19.371,19.359,21.849]
[1688389160136,56.22,19.371,19.359,21.849]
[1688389161347,21.839,19.369,19.36,20.0]
[1688389161549,21.839,19.369,19.364,21.844]
[1688389161750,56.212,19.373,19.364,21.844]
[1688389161946,21.835,19.373,19.364,21.844]
[1688389163745,31.77,19.39,19.364,21.844]
[1688389163953,56.191,19.381,19.364,21.844]
[1688389164265,21.828,19.378,19.365,55.0]
[1688389164559,21.828,19.378,19.368,78.063]
[1688389165446,21.828,19.378,19.371,21.835]
[1688389166745,10.83719922,19.383,19.371,21.835]
[1688389166949,10.83719922,19.383,19.37,56.218]
[1688389166950,21.824,19.382,19.374,78.039]
[1688389167149,56.169,19.388,19.374,78.039]
[1688389167359,21.822,19.384,19.374,78.039]
[1688389169662,56.169,19.388,19.374,78.039]
[1688389169851,21.821,19.385,19.374,78.039]
[1688389170052,21.821,19.385,19.375,55.0]
[1688389170254,21.821,19.385,19.378,21.828]
[1688389170449,21.821,19.385,19.374,56.207]
[1688389170758,21.821,19.385,19.377,21.829]
[1688389174176,77.998,19.385,19.373,98.7646]
[1688389174462,21.824,19.382,19.377,21.829]
[1688389176460,21.826,19.38,19.377,21.829]
[1688389176861,76.826,19.381,19.377,21.829]
[1688389177379,55.0,19.381,19.377,21.829]
[1688389178364,21.823,19.383,19.377,21.829]
[1688389178552,55.0,19.382,19.377,21.829]
[1688389180159,56.173,19.387,19.377,21.829]
[1688389180359,55.0,19.386,19.377,21.829]
[1688389181154,21.822,19.384,19.377,21.829]
[1688389181351,21.818,19.388,19.377,21.829]
[1688389184161,55.0,19.387,19.377,21.829]
[1688389184363,21.822,19.384,19.377,21.829]
[1688389185659,21.822,19.385,19.377,21.829]
[1688389186372,31.5,19.39,19.377,21.829]
[1688389186677,21.821,19.385,19.377,21.829]
[1688389189077,21.818,19.388,19.377,21.829]
[1688389189576,31.5,19.39,19.377,21.829]
[1688389189880,21.817,19.389,19.377,21.829]
[1688389194781,21.817,19.389,19.378,55.0]
[1688389194964,21.817,19.389,19.381,21.825]
[1688389195658,77.982,19.389,19.381,21.825]
[1688389196071,21.817,19.389,19.381,21.825]
[1688389196255,21.816,19.389,19.381,78.014]
[1688389196670,21.816,19.389,19.381,21.825]
[1688389200481,122.462,19.393,19.381,21.825]
[1688389200482,56.162,19.391,19.381,21.825]
[1688389203179,21.821,19.385,19.377,21.828]
[1688389203374,55.0,19.384,19.377,21.829]
[1688389203573,21.824,19.382,19.377,21.829]
[1688389203773,21.824,19.382,19.373,56.209]
[1688389205069,21.824,19.382,19.377,21.829]
[1688389205476,21.824,19.383,19.377,21.829]
[1688389207793,55.0,19.384,19.377,21.829]
[1688389207981,21.822,19.384,19.377,78.029]
[1688389208994,21.822,19.384,19.377,21.829]
[1688389210495,55.0,19.383,19.377,21.829]
[1688389210697,21.825,19.382,19.377,21.829]
[1688389213288,56.171,19.387,19.377,21.829]
[1688389213488,21.822,19.384,19.377,21.829]
[1688389217979,21.822,19.384,19.371,102.573]
[1688389218177,21.822,19.384,19.377,21.829]
[1688389226089,21.822,19.384,19.377,78.029]
[1688389228708,21.821,19.385,19.377,78.029]
[1688389230513,21.821,19.385,19.377,21.829]
[1688389233306,56.166,19.389,19.377,21.829]
[1688389233492,56.166,19.389,19.38,31.73]
[1688389233698,21.819,19.387,19.382,21.823]
[1688389234799,21.816,19.389,19.382,21.823]
[1688389235000,10.83719922,19.393,19.382,21.823]
[1688389235001,56.154,19.393,19.382,21.823]
[1688389236198,21.816,19.39,19.382,21.823]
[1688389236506,21.815,19.391,19.382,21.823]
[1688389236713,21.813,19.392,19.382,21.823]
[1688389237811,21.813,19.393,19.382,21.823]
[1688389238003,21.813,19.392,19.382,21.823]
[1688389239415,21.811,19.394,19.383,55.0]
[1688389239603,21.811,19.394,19.386,77.992]
[1688389241305,21.811,19.394,19.386,21.819]
[1688389246418,21.811,19.394,19.386,77.993]
[1688389248014,21.811,19.394,19.386,21.819]
[1688389250719,21.811,19.394,19.386,77.993]
[1688389250911,21.811,19.394,19.386,21.819]
[1688389255916,10.83719922,19.399,19.386,21.819]
[1688389256229,21.809,19.396,19.386,21.819]
[1688389257420,56.136,19.4,19.39,31.69]
[1688389257732,21.808,19.397,19.39,31.69]
[1688389257926,21.808,19.397,19.39,21.815]
[1688389260226,21.808,19.397,19.384,254.0616]
[1688389260428,55.0,19.396,19.389,21.816]
[1688389260629,21.81,19.394,19.389,21.816]
[1688389261231,21.81,19.394,19.385,56.175]
[1688389261417,21.81,19.394,19.387,21.817]
[1688389261835,21.81,19.394,19.384,95.3806]
[1688389262039,55.0,19.393,19.386,21.819]
[1688389262245,10.83719922,19.397,19.386,21.819]
[1688389262539,53.82456229,19.416,19.386,21.819]
[1688389262722,65.83719922,19.399,19.386,21.819]
[1688389262925,21.808,19.397,19.386,21.819]
[1688389265135,21.808,19.397,19.39,21.815]
[1688389266836,77.95,19.397,19.385,56.176]
[1688389267638,77.95,19.397,19.389,21.815]
[1688389269846,21.808,19.397,19.389,21.815]
[1688389272535,10.83719922,19.403,19.389,21.815]
[1688389272742,20.0,19.402,19.39,31.69]
[1688389272952,10.83719922,19.401,19.393,21.811]
[1688389273242,102.405,19.404,19.393,21.811]
[1688389274135,21.805,19.399,19.393,21.811]
[1688389274336,56.121,19.405,19.393,21.811]
[1688389274536,55.0,19.404,19.393,21.811]
[1688389274727,21.802,19.402,19.393,21.811]
[1688389275327,21.8,19.403,19.393,21.811]
[1688389275626,21.798,19.405,19.393,21.811]
[1688389275831,21.798,19.405,19.394,55.0]
[1688389276030,21.798,19.405,19.397,21.807]
[1688389277353,10.83719922,19.41,19.397,21.807]
[1688389277649,21.795,19.408,19.397,21.807]
[1688389278038,32.63219922,19.408,19.397,21.807]
[1688389278229,55.0,19.407,19.397,21.807]
[1688389278429,21.799,19.404,19.397,21.807]
[1688389280229,31.51,19.42,19.397,21.807]
[1688389280532,21.794,19.409,19.404,21.798]
[1688389280848,56.09,19.415,19.404,21.798]
[1688389281054,10.83719922,19.417,19.404,21.798]
[1688389282043,31.51,19.42,19.404,21.798]
[1688389282244,10.83719922,19.419,19.404,21.798]
[1688389283245,21.785,19.417,19.404,21.798]
[1688389283931,21.79,19.413,19.404,21.798]
[1688389284141,55.0,19.416,19.404,21.798]
[1688389284334,76.787,19.416,19.404,21.798]
[1688389284827,20.0,19.415,19.403,21.799]
[1688389285032,77.892,19.412,19.401,21.802]
[1688389285231,77.892,19.412,19.401,77.933]
[1688389285444,21.791,19.412,19.401,77.933]
[1688389285840,56.088,19.416,19.401,77.933]
[1688389286036,21.79,19.412,19.401,77.933]
[1688389286529,21.79,19.412,19.405,21.798]
[1688389286933,32.62719922,19.412,19.394,51.54]
[1688389287134,21.795,19.408,19.4,21.803]
[1688389288944,21.795,19.408,19.403,21.8]
[1688389289153,21.795,19.408,19.402,21.801]
[1688389289331,77.905,19.408,19.399,21.804]
[1688389289535,76.905,19.408,19.399,21.804]
[1688389290636,76.905,19.408,19.398,21.806]
[1688389291030,76.905,19.408,19.392,51.54]
[1688389291239,76.905,19.408,19.396,21.808]
[1688389291457,76.905,19.408,19.395,21.808]
[1688389292957,76.905,19.408,19.396,55.0]
[1688389293258,76.905,19.408,19.399,21.805]
[1688389299458,20.795,19.408,19.402,21.801]
[1688389302864,76.905,19.408,19.398,21.806]
[1688389303662,20.795,19.408,19.398,21.806]
[1688389304151,20.795,19.408,19.401,21.802]
[1688389304548,20.795,19.408,19.403,21.799]
[1688389305962,55.0,19.407,19.397,21.807]
[1688389306261,21.799,19.404,19.397,21.807]
[1688389311176,56.111,19.408,19.397,77.949]
[1688389311369,21.799,19.404,19.397,77.949]
[1688389311567,21.799,19.405,19.397,77.949]
[1688389311752,56.111,19.408,19.397,77.949]
[1688389313265,21.799,19.404,19.397,21.807]
[1688389315673,21.796,19.407,19.397,21.807]
[1688389316064,21.796,19.408,19.397,21.807]
[1688389316268,56.102,19.411,19.397,21.807]
[1688389316471,21.795,19.408,19.397,21.807]
[1688389316972,77.905,19.408,19.397,21.807]
[1688389317879,55.0,19.407,19.397,21.807]
[1688389318082,21.799,19.404,19.397,21.807]
[1688389318773,55.0,19.407,19.397,21.807]
[1688389319283,134.013,19.41,19.397,21.807]
[1688389319578,55.0,19.409,19.397,21.807]
[1688389320180,21.798,19.406,19.397,21.807]
[1688389322863,21.798,19.406,19.396,21.808]
[1688389323066,21.801,19.403,19.38,157.61]
[1688389323269,21.801,19.403,19.391,21.813]
[1688389323470,21.805,19.399,19.391,21.813]
[1688389323977,55.0,19.398,19.387,21.818]
[1688389324178,31.42,19.4,19.387,158.662]
[1688389324479,10.83719922,19.402,19.387,158.662]
[1688389324480,21.807,19.397,19.387,180.48]
[1688389324673,21.807,19.398,19.387,180.48]
[1688389325779,69.8586482,19.409,19.387,180.48]
[1688389326083,77.928,19.403,19.387,180.48]
[1688389326282,20.0,19.402,19.388,92.0673]
[1688389326578,21.805,19.399,19.392,21.812]
[1688389326885,21.805,19.399,19.391,21.813]
[1688389327087,21.805,19.399,19.392,21.812]
[1688389332294,20.0,19.402,19.392,21.812]
[1688389332585,21.804,19.4,19.392,21.812]
[1688389333294,21.804,19.4,19.391,21.813]
[1688389333596,21.804,19.4,19.39,21.814]
[1688389333775,55.0,19.399,19.387,56.17]
[1688389334092,21.809,19.396,19.391,21.814]
[1688389339178,21.809,19.396,19.39,21.814]
[1688389339882,111.138,19.399,19.39,21.814]
[1688389340291,76.13,19.402,19.39,21.814]
[1688389340482,21.805,19.399,19.39,21.814]
[1688389340890,21.804,19.4,19.391,75.0]
[1688389341070,21.803,19.401,19.393,77.963]
[1688389341270,102.388,19.407,19.393,77.963]
[1688389341889,42.4079871,19.413,19.393,77.963]
[1688389342079,21.8,19.404,19.393,77.963]
[1688389342279,21.8,19.404,19.394,55.0]
[1688389342480,21.8,19.404,19.397,21.807]
[1688389352493,55.0,19.403,19.396,21.807]
[1688389352696,21.803,19.401,19.391,97.3445]
[1688389352904,21.803,19.401,19.394,21.81]
[1688389354703,21.802,19.402,19.394,21.81]
[1688389354909,56.11,19.408,19.394,21.81]
[1688389355093,55.0,19.407,19.394,21.81]
[1688389355289,21.8,19.404,19.394,21.81]
[1688389355494,55.0,19.403,19.394,21.81]
[1688389355694,21.803,19.401,19.394,21.81]
[1688389357906,77.934,19.401,19.39,56.161]
[1688389358107,86.67,19.4,19.388,56.167]
[1688389358310,21.808,19.397,19.389,21.815]
[1688389359915,56.129,19.402,19.39,31.67]
[1688389360101,21.807,19.397,19.39,21.814]
[1688389361014,21.807,19.397,19.389,21.815]
[1688389363409,77.949,19.397,19.389,21.815]
[1688389364314,55.0,19.396,19.389,21.815]
[1688389364515,21.81,19.394,19.389,21.815]